fUSD/lending_fUSD_20240630
["ID","MTS","AMOUNT","RATE_DAILY","PERIOD"]
[330739537,1719748255685,-500.0,0.0001399,3]
[330739538,1719748255694,-500.0,0.0001399,3]
[330739539,1719748255705,-509.87,0.0001399,3]
[330739540,1719748255714,-500.0,0.0001399,3]
[330739541,1719748255723,-500.0,0.0001399,3]
[330739542,1719748255733,-500.0,0.0001399,3]
[330739543,1719748255742,-500.0,0.0001399,3]
[330739544,1719748255751,-704.74,0.0001399,3]
[330739545,1719748255763,-500.0,0.0001399,3]
[330739546,1719748255772,-500.0,0.0001399,3]
[330739547,1719748255781,-841.61,0.0001399,3]
[330739548,1719748255791,-500.0,0.0001399,3]
[330739549,1719748255800,-500.0,0.0001399,3]
[330739550,1719748255810,-500.0,0.0001399,3]
[330739551,1719748255819,-500.0,0.0001399,3]
[330739552,1719748255830,-500.0,0.0001399,3]
[330739553,1719748255839,-500.0,0.0001399,3]
[330739554,1719748255849,-500.0,0.0001399,3]
[330739555,1719748255858,-515.18,0.0001399,3]
[330739556,1719748255868,-500.0,0.0001399,3]
[330739557,1719748255877,-500.0,0.0001399,3]
[330739558,1719748255886,-500.0,0.0001399,3]
[330739559,1719748255895,-548.64,0.0001399,3]
[330739560,1719748255905,-500.0,0.0001399,3]
[330739561,1719748255914,-500.0,0.0001399,3]
[330739562,1719748255923,-500.0,0.0001399,3]
[330739563,1719748255932,-500.0,0.0001399,3]
[330739564,1719748255942,-2385.25,0.0001399,3]
[330739565,1719748255951,-500.0,0.0001399,3]
[330739566,1719748255960,-500.0,0.0001399,3]
[330739567,1719748255970,-501.64,0.0001399,3]
[330739568,1719748255979,-622.54,0.0001399,3]
[330739569,1719748255988,-1251.31,0.0001399,3]
[330739570,1719748255998,-517.98,0.0001399,3]
[330739571,1719748256008,-508.87,0.0001399,3]
[330739572,1719748256020,-533.31,0.0001399,3]
[330739573,1719748256029,-500.0,0.0001399,3]
[330739574,1719748256038,-500.0,0.0001399,3]
[330739575,1719748256050,-683.18,0.0001399,3]
[330739576,1719748256060,-1780.69,0.0001399,3]
[330739577,1719748256070,-500.0,0.0001399,3]
[330739578,1719748256079,-500.0,0.0001399,3]
[330739579,1719748256089,-564.04,0.0001399,3]
[330739580,1719748256099,-500.0,0.0001399,3]
[330739581,1719748256108,-500.0,0.0001399,3]
[330739582,1719748256118,-500.0,0.0001399,3]
[330739583,1719748256131,-500.0,0.0001399,3]
[330739584,1719748256142,-597.38,0.0001399,3]
[330739585,1719748256151,-1326.46,0.0001399,3]
[330739586,1719748256160,-500.0,0.0001399,3]
[330739587,1719748256170,-500.0,0.0001399,3]
[330739588,1719748256179,-500.0,0.0001399,3]
[330739589,1719748256188,-500.0,0.0001399,3]
[330739590,1719748256198,-574.06,0.0001399,3]
[330739591,1719748256207,-500.0,0.0001399,3]
[330739592,1719748256217,-500.0,0.0001399,3]
[330739593,1719748256226,-500.0,0.0001399,3]
[330739594,1719748256235,-559.67,0.0001399,3]
[330739595,1719748256250,-551.68,0.0001399,3]
[330739596,1719748256260,-500.0,0.0001399,3]
[330739597,1719748256270,-500.0,0.0001399,3]
[330739598,1719748256279,-500.0,0.0001399,3]
[330739599,1719748256288,-500.0,0.0001399,3]
[330739600,1719748256300,-500.0,0.0001399,3]
[330739601,1719748256309,-500.0,0.0001399,3]
[330739602,1719748256319,-500.0,0.0001399,3]
[330739603,1719748256329,-1465.78,0.0001399,3]
[330739604,1719748256339,-500.0,0.0001399,2]
[330739605,1719748256350,-500.0,0.0001399,3]
[330739606,1719748256364,-500.0,0.0001399,3]
[330739607,1719748256373,-500.0,0.0001399,3]
[330739608,1719748256382,-1168.72,0.0001399,3]
[330739609,1719748256392,-500.0,0.0001399,3]
[330739610,1719748256401,-500.0,0.0001399,3]
[330739611,1719748256411,-500.0,0.0001399,3]
[330739612,1719748256421,-500.0,0.0001399,3]
[330739613,1719748256432,-500.0,0.0001399,3]
[330739614,1719748256441,-1393.58,0.0001399,3]
[330739615,1719748256451,-525.27,0.0001399,3]
[330739616,1719748256460,-1337.58,0.0001399,3]
[330739617,1719748256470,-500.0,0.0001399,3]
[330739618,1719748256479,-500.0,0.0001399,2]
[330739619,1719748256488,-500.0,0.0001399,3]
[330739620,1719748256498,-603.71560711,0.0001399,3]
[330739621,1719748256507,-500.0,0.0001399,3]
[330739622,1719748256518,-500.0,0.0001399,3]
[330739623,1719748256527,-500.0,0.0001399,3]
[330739624,1719748256537,-500.0,0.0001399,3]
[330739625,1719748256547,-500.0,0.0001399,3]
[330739626,1719748256556,-500.0,0.0001399,3]
[330739627,1719748256566,-599.27,0.0001399,3]
[330739628,1719748256575,-500.0,0.0001399,3]
[330739629,1719748256585,-500.0,0.0001399,3]
[330739630,1719748256594,-1971.58,0.0001399,3]
[330739631,1719748256603,-500.0,0.0001399,3]
[330739632,1719748256614,-1109.15,0.0001399,3]
[330739633,1719748256623,-500.0,0.0001399,3]
[330739634,1719748256632,-500.0,0.0001399,3]
[330739635,1719748256642,-500.0,0.0001399,3]
[330739636,1719748256651,-1658.53,0.0001399,3]
[330739637,1719748256660,-500.0,0.0001399,3]
[330739638,1719748256670,-500.0,0.0001399,3]
[330739639,1719748256679,-500.0,0.0001399,3]
[330739640,1719748256690,-500.0,0.0001399,3]
[330739641,1719748256699,-500.0,0.0001399,3]
[330739642,1719748256709,-500.0,0.0001399,3]
[330739643,1719748256718,-500.0,0.0001399,3]
[330739644,1719748256727,-500.0,0.0001399,3]
[330739645,1719748256737,-1125.28,0.0001399,3]
[330739646,1719748256746,-830.12,0.0001399,3]
[330739647,1719748256756,-1679.65,0.0001399,3]
[330739648,1719748256767,-151.323336,0.0001399,2]
[330739649,1719748256776,-151.0,0.0001399,2]
[330739650,1719748256785,-500.0,0.0001399,3]
[330739651,1719748256795,-398.052502,0.0001399,2]
[330739652,1719748256805,-398.052502,0.0001399,2]
[330739653,1719748256815,-151.0,0.0001399,2]
[330739654,1719748256824,-151.0,0.0001399,2]
[330739655,1719748256834,-500.0,0.0001399,3]
[330739656,1719748256843,-254.031904,0.0001399,2]
[330739657,1719748256852,-151.0,0.0001399,2]
[330739658,1719748256861,-500.0,0.0001399,3]
[330739659,1719748256871,-1313.26,0.0001399,3]
[330739660,1719748256880,-151.0,0.0001399,2]
[330739661,1719748256889,-151.0,0.0001399,2]
[330739662,1719748256898,-500.0,0.0001399,3]
[330739663,1719748256907,-161.98439,0.0001399,2]
[330739664,1719748256916,-500.0,0.0001399,3]
[330739665,1719748256926,-734.77,0.0001399,3]
[330739666,1719748256935,-612.39,0.0001399,3]
[330739667,1719748256944,-151.0,0.0001399,2]
[330739668,1719748256953,-887.122949,0.0001399,2]
[330739669,1719748256962,-541.68968403,0.0001399,3]
[330739670,1719748256972,-151.0,0.0001399,2]
[330739671,1719748256981,-887.122949,0.0001399,2]
[330739672,1719748256992,-500.0,0.0001399,3]
[330739673,1719748257002,-549.08,0.0001399,3]
[330739674,1719748257011,-500.0,0.0001399,3]
[330739675,1719748257023,-500.0,0.0001399,3]
[330739676,1719748257032,-151.0,0.0001399,2]
[330739677,1719748257046,-6544.721549,0.0001399,2]
[330739678,1719748257056,-428.61457346,0.0001399,3]
[330739679,1719748257065,-500.0,0.0001399,3]
[330739680,1719748257074,-500.0,0.0001399,3]
[330739681,1719748257084,-151.0,0.0001399,2]
[330739682,1719748257092,-6544.721549,0.0001399,2]
[330739683,1719748257102,-894.08,0.0001399,3]
[330739684,1719748257111,-601.62,0.0001399,3]
[330739685,1719748257120,-230.481855,0.0001399,2]
[330739686,1719748257130,-151.0,0.0001399,2]
[330739687,1719748257139,-986.08,0.0001399,3]
[330739688,1719748257148,-500.0,0.0001399,3]
[330739689,1719748257157,-312.171449,0.0001399,2]
[330739690,1719748257166,-312.171449,0.0001399,2]
[330739691,1719748257175,-151.0,0.0001399,2]
[330739692,1719748257185,-156.029061,0.0001399,2]
[330739693,1719748257194,-1324.3,0.0001399,3]
[330739694,1719748257204,-151.0,0.0001399,2]
[330739695,1719748257213,-854.48,0.0001399,3]
[330739696,1719748257223,-290.721849,0.0001399,2]
[330739697,1719748257232,-3488.67,0.0001399,3]
[330739698,1719748257243,-290.721849,0.0001399,2]
[330739699,1719748257463,-151.0,0.0001399,2]
[330739700,1719748257473,-151.0,0.0001399,2]
[330739701,1719748257483,-155.906933,0.0001399,2]
[330739702,1719748257492,-1687.1,0.0001399,3]
[330739703,1719748257502,-151.0,0.0001399,2]
[330739704,1719748257513,-151.0,0.00013991,2]
[330739705,1719748257524,-151.0,0.00013991,2]
[330739706,1719748257534,-151.0,0.00013991,2]
[330739707,1719748257544,-151.0,0.00013991,2]
[330739708,1719748257556,-151.0,0.00013991,2]
[330739709,1719748257566,-172.927095,0.00013991,2]
[330739710,1719748257576,-151.0,0.00013991,2]
[330739711,1719748257586,-172.927095,0.00013991,2]
[330739712,1719748257595,-151.0,0.00013991,2]
[330739713,1719748257605,-151.0,0.00013991,2]
[330739714,1719748257615,-151.0,0.00013991,2]
[330739715,1719748257625,-2652.98,0.00013991,3]
[330739716,1719748257635,-151.0,0.00013991,2]
[330739717,1719748257645,-1053.46,0.00013991,3]
[330739718,1719748257655,-1388.26,0.00013991,3]
[330739719,1719748257665,-4732.69,0.00013991,3]
[330739720,1719748257675,-500.0,0.00013991,3]
[330739721,1719748257685,-500.0,0.00013991,3]
[330739722,1719748257695,-500.0,0.00013991,2]
[330739723,1719748257704,-500.0,0.00013992,2]
[330739724,1719748257714,-500.0,0.00013992,2]
[330739725,1719748257724,-3839.55830549,0.00013998,2]
[330739726,1719748257734,-500.0,0.00013998,2]
[330739727,1719748257743,-201.35143862,0.00013999,2]
[330739728,1719748257753,-3830.19670741,0.00013999,2]
[330739729,1719748257764,-500.0,0.00013999,2]
[330739730,1719748257774,-500.0,0.00013999,2]
[330739731,1719748257784,-500.0,0.00013999,2]
[330739732,1719748257793,-500.0,0.00013999,2]
[330739733,1719748257804,-500.0,0.00013999,2]
[330739734,1719748257814,-500.0,0.00013999,2]
[330739735,1719748257824,-500.0,0.00013999,2]
[330739736,1719748257833,-213.78962475,0.00013999,2]
[330739737,1719748257843,-500.0,0.00013999,2]
[330739738,1719748257853,-500.0,0.00013999,2]
[330739739,1719748257862,-500.0,0.00013999,2]
[330739740,1719748257872,-500.0,0.00013999,2]
[330739741,1719748257882,-500.0,0.00013999,2]
[330739742,1719748257891,-500.0,0.00013999,2]
[330739743,1719748257901,-541.59971358,0.00013999,2]
[330739744,1719748257910,-500.0,0.00013999,2]
[330739745,1719748257920,-500.0,0.00013999,2]
[330739746,1719748257929,-500.0,0.00013999,2]
[330739747,1719748257939,-500.0,0.00013999,2]
[330739748,1719748257948,-500.0,0.00013999,2]
[330739749,1719748257958,-500.0,0.00013999,2]
[330739750,1719748257968,-500.0,0.00013999,2]
[330739751,1719748257977,-500.0,0.00013999,2]
[330739752,1719748257987,-548.98538488,0.00013999,2]
[330739753,1719748257997,-559.43,0.00013999,3]
[330739754,1719748258006,-500.0,0.00013999,3]
[330739756,1719748258016,-500.0,0.00013999,2]
[330739757,1719748258026,-500.0,0.00013999,2]
[330739758,1719748258036,-500.0,0.00013999,2]
[330739759,1719748258050,-500.0,0.00013999,2]
[330739760,1719748258059,-500.0,0.00013999,2]
[330739761,1719748258069,-500.0,0.00013999,2]
[330739762,1719748258081,-500.0,0.00013999,2]
[330739763,1719748258091,-500.0,0.00013999,2]
[330739764,1719748258101,-155.0,0.00013999,2]
[330739765,1719748258111,-647.0,0.00014,2]
[330739766,1719748258121,-727084.55665308,0.00014,2]
[330739768,1719748258142,-1750.0,0.00014,2]
[330739769,1719748258218,-1229312.38012337,0.00014,2]
[330739770,1719748258232,-292.5,0.00014,2]
[330739771,1719748258255,-27960.98745633,0.00014,2]
[330739772,1719748258267,-4329.47565886,0.00014,2]
[330739773,1719748258277,-44198.3705557,0.00014,2]
[330739774,1719748258288,-699.55983868,0.00014,2]
[330739776,1719748259174,-181.09510387,0.00013988,3]
[330739777,1719748259183,-431.72809613,0.0001399,2]
[330739778,1719748259196,-22.29968387,0.0001399,2]
[330739779,1719748259206,-942.45,0.00013991,3]
[330739780,1719748259215,-172466.03485724,0.00014,2]
[330739781,1719748259225,-461.65351825,0.00014,2]
[330739782,1719748259234,-215996.14142343,0.00014,2]
[330739783,1719748259270,-15478.41705377,0.00014,2]
[330739784,1719748259281,-404.0,0.00014,2]
[330739785,1719748259307,-45136.67864387,0.00014,2]
[330739786,1719748259393,-1904.09794732,0.00014,2]
[330739787,1719748259403,-4654.61803241,0.00014,2]
[330739788,1719748259420,-3465.02686662,0.00014,2]
[330739789,1719748259431,-1568.13017339,0.00014,2]
[330739790,1719748259442,-2693.4448,0.00014,2]
[330739791,1719748259453,-1408.24853715,0.00014,2]
[330739792,1719748259480,-348.5255592,0.00014,2]
[330739793,1719748259496,-299.975,0.00014,2]
[330739794,1719748259508,-667246.89878955,0.00014,2]
[330739795,1719748259519,-321.47067672,0.00014,2]
[330739796,1719748259531,-3563.3413326,0.00014,2]
[330739797,1719748259542,-10142.18601519,0.00014,2]
[330739798,1719748259559,-590.59,0.00014,2]
[330739805,1719748356908,281.5182,0.00011099,2]
[330739806,1719748376473,157.1593,0.00011099,2]
[330739810,1719748485294,150.0,0.00011099,2]
[330739811,1719748485318,150.0,0.00011099,2]
[330739812,1719748485343,150.0,0.00011099,2]
[330739813,1719748485367,277.64260232,0.00011099,2]
[330739814,1719748565514,577.51,0.00011036,2]
[330739815,1719748644625,328.62827887,0.00011098,2]
[330739816,1719748769047,435.67948852,0.00011098,2]
[330739825,1719749029985,-100000.0,0.000225,120]
[330739826,1719749047136,-1100000.0,0.000225,120]
[330739832,1719749081692,523.96690629,0.00011098,2]
[330739834,1719749087630,-18300.0,0.000225,120]
[330739841,1719749123859,548.63,0.00010542,2]
[330739852,1719749174893,196.20443442,0.00011098,2]
[330739855,1719749177811,155.0,0.00012778,120]
[330739857,1719749187111,217.93104005,0.00011098,2]
[330739858,1719749192769,155.0,0.00012778,120]
[330739863,1719749212340,1463.04118436,0.00010542,2]
[330739868,1719749239759,155.0,0.00015488,120]
[330739880,1719749303605,1270.71740907,0.00011098,2]
[330739881,1719749307120,722.36239335,0.00011098,2]
[330739882,1719749308770,175.05467495,0.00018773,120]
[330739889,1719749350170,-519.86065789,0.00011199,2]
[330739890,1719749350192,-1000.0,0.00012302,2]
[330739891,1719749350216,-1317.47234211,0.00012421,2]
[330739933,1719749432220,-300.0,0.0001242,2]
[330739934,1719749432230,-205.45153135,0.00012421,2]
[330739935,1719749432240,-211.14234928,0.00012421,2]
[330739936,1719749432252,-2657.0803135,0.00012421,2]
[330739937,1719749432263,-318.64482262,0.00012421,2]
[330739938,1719749432282,-19395.66017249,0.00012421,2]
[330739939,1719749432291,-250.0,0.0001243,2]
[330739940,1719749432303,-1757.45,0.0001243,2]
[330739941,1719749432314,-150.0,0.00012467,2]
[330739942,1719749432324,-250.0,0.00012471,2]
[330739943,1719749432334,-263.61,0.00012478,2]
[330739944,1719749432344,-222.35,0.00012491,2]
[330739945,1719749432354,-286.59,0.00012495,2]
[330739946,1719749432364,-167.63,0.00012507,2]
[330739947,1719749432374,-587.72466878,0.00012756,2]
[330739948,1719749432384,-548.63,0.00012806,2]
[330739949,1719749432394,-185.0,0.00012932,2]
[330739950,1719749432404,-2356.91,0.00012968,2]
[330739951,1719749432414,-185.0,0.00012968,2]
[330739952,1719749432424,-185.0,0.00013003,2]
[330739953,1719749432436,-499.99,0.00013003,2]
[330739954,1719749432453,-390.89,0.00013007,2]
[330739955,1719749432463,-1000.0,0.0001303,2]
[330739956,1719749432473,-185.0,0.00013039,2]
[330739957,1719749432483,-185.0,0.00013074,2]
[330739958,1719749432494,-185.0,0.00013109,2]
[330739959,1719749432503,-185.0,0.00013145,2]
[330739960,1719749432514,-185.0,0.0001318,2]
[330739961,1719749432524,-185.0,0.00013216,2]
[330739962,1719749432535,-185.0,0.00013251,2]
[330739963,1719749432546,-185.0,0.00013287,2]
[330739964,1719749432556,-185.0,0.00013322,2]
[330739965,1719749432565,-185.0,0.00013358,2]
[330739966,1719749432575,-185.0,0.00013393,2]
[330739967,1719749432584,-185.0,0.00013429,2]
[330739968,1719749432593,-185.0,0.00013464,2]
[330739969,1719749432603,-185.0,0.000135,2]
[330739970,1719749432613,-185.0,0.00013535,2]
[330739971,1719749432623,-185.0,0.00013571,2]
[330739972,1719749432632,-200.0,0.000136,4]
[330739973,1719749432642,-185.0,0.00013606,2]
[330739974,1719749432651,-420.0,0.00013629,2]
[330739975,1719749432661,-2751.0,0.00013699,2]
[330739977,1719749432672,-200.0,0.00013699,2]
[330739979,1719749432682,-690.89,0.00013699,2]
[330739981,1719749432692,-1223.28,0.00013699,2]
[330739983,1719749432701,-500.0,0.000137,5]
[330739985,1719749432711,-363.3224,0.000138,2]
[330739986,1719749432720,-800.0,0.000138,5]
[330739988,1719749432730,-174.18,0.00013822,2]
[330739991,1719749432740,-491.04145,0.0001386,2]
[330739993,1719749432749,-7020.77020619,0.00013886,2]
[330739995,1719749432759,-10540.71300924,0.00013887,2]
[330740004,1719749433479,-573.07946795,0.00013887,2]
[330740005,1719749433493,-6002.81568082,0.00013887,2]
[330740006,1719749433503,-303.51660676,0.00013887,2]
[330740007,1719749433514,-157.6773932,0.00013887,2]
[330740008,1719749433527,-374.8776,0.00013887,2]
[330740009,1719749433545,-4892.76469541,0.000139,2]
[330740010,1719749433570,-21322.20940459,0.000139,2]
[330740011,1719749433584,-7168.85838569,0.000139,2]
[330740012,1719749433596,-195.07528796,0.000139,2]
[330740013,1719749433609,-169.29115711,0.000139,2]
[330740014,1719749433623,-1100.0,0.000139,5]
[330740015,1719749433638,-157.67739316,0.00013915,2]
[330740016,1719749433652,-500.0,0.0001394,2]
[330740017,1719749433666,-200.0,0.0001394,2]
[330740018,1719749433682,-157.67739316,0.00013943,2]
[330740019,1719749433697,-157.67739316,0.0001397,2]
[330740020,1719749433710,-728.52,0.00013977,2]
[330740021,1719749433723,-728.52,0.00013977,2]
[330740022,1719749433736,-188.23245816,0.00013978,2]
[330740023,1719749433749,-500.0,0.00013986,3]
[330740024,1719749433765,-500.0,0.00013986,3]
[330740025,1719749433780,-500.0,0.00013986,3]
[330740026,1719749433794,-727.96,0.00013986,3]
[330740027,1719749433810,-500.0,0.00013986,3]
[330740028,1719749433823,-542.41,0.00013986,3]
[330740029,1719749433836,-793.12,0.00013986,3]
[330740030,1719749433848,-669.85,0.00013986,3]
[330740031,1719749433861,-513.54,0.00013986,3]
[330740032,1719749433874,-500.0,0.00013986,3]
[330740033,1719749433888,-762.55,0.00013986,3]
[330740034,1719749433903,-500.0,0.00013986,3]
[330740035,1719749433916,-500.0,0.00013986,3]
[330740036,1719749433926,-500.0,0.00013986,3]
[330740037,1719749433937,-537.55,0.00013986,3]
[330740038,1719749433948,-652.87,0.00013986,3]
[330740039,1719749433962,-500.0,0.00013986,3]
[330740040,1719749433977,-203.95,0.00013986,3]
[330740041,1719749433989,-580.26,0.00013986,3]
[330740042,1719749434000,-500.0,0.00013986,3]
[330740043,1719749434011,-500.0,0.00013986,3]
[330740044,1719749434026,-500.0,0.00013986,3]
[330740045,1719749434038,-658.2,0.00013986,3]
[330740046,1719749434050,-500.0,0.00013986,3]
[330740047,1719749434060,-932.35,0.00013986,3]
[330740048,1719749434072,-500.0,0.00013986,3]
[330740049,1719749434090,-404.6,0.00013986,3]
[330740050,1719749434101,-500.0,0.00013986,3]
[330740051,1719749434113,-500.0,0.00013986,3]
[330740052,1719749434124,-511.99,0.00013986,3]
[330740053,1719749434136,-500.0,0.00013986,3]
[330740054,1719749434148,-924.2,0.00013986,3]
[330740055,1719749434160,-791.13,0.00013986,3]
[330740056,1719749434171,-810.79,0.00013986,3]
[330740057,1719749434183,-640.51,0.00013986,3]
[330740058,1719749434196,-503.67996953,0.00013986,3]
[330740059,1719749434208,-1113.99,0.00013986,3]
[330740060,1719749434220,-500.0,0.00013986,3]
[330740061,1719749434232,-500.0,0.00013986,3]
[330740062,1719749434244,-713.13,0.00013986,3]
[330740063,1719749434256,-601.64,0.00013986,3]
[330740064,1719749434269,-500.0,0.00013986,3]
[330740065,1719749434281,-1022.53,0.00013986,3]
[330740066,1719749434293,-590.96,0.00013986,3]
[330740067,1719749434304,-4391.84,0.00013986,3]
[330740068,1719749434316,-500.0,0.00013986,3]
[330740069,1719749434328,-1184.02,0.00013986,3]
[330740070,1719749434340,-1915.78,0.00013986,3]
[330740071,1719749434352,-512.23,0.00013986,3]
[330740072,1719749434364,-500.0,0.00013986,3]
[330740073,1719749434376,-500.0,0.00013986,3]
[330740074,1719749434389,-500.0,0.00013986,3]
[330740075,1719749434400,-1852.08,0.00013986,3]
[330740076,1719749434413,-2724.07,0.00013986,3]
[330740077,1719749434425,-783.78,0.00013986,3]
[330740078,1719749434437,-500.0,0.00013986,3]
[330740079,1719749434453,-1471.77,0.00013986,3]
[330740080,1719749434465,-500.0,0.00013986,3]
[330740081,1719749434477,-535.33,0.00013986,3]
[330740082,1719749434489,-2036.27,0.00013986,3]
[330740083,1719749434502,-804.08,0.00013986,3]
[330740084,1719749434514,-857.63,0.00013986,3]
[330740085,1719749434528,-1319.94,0.00013986,3]
[330740086,1719749434540,-873.79,0.00013986,3]
[330740087,1719749434552,-989.68,0.00013986,3]
[330740088,1719749434564,-653.27,0.00013986,3]
[330740089,1719749434576,-1010.37,0.00013986,3]
[330740090,1719749434588,-591.06,0.00013986,3]
[330740091,1719749434602,-500.0,0.00013986,3]
[330740092,1719749434615,-3607.47,0.00013986,3]
[330740093,1719749434628,-1262.93,0.00013986,3]
[330740094,1719749434640,-995.62,0.00013986,3]
[330740095,1719749434651,-1011.37,0.00013986,3]
[330740096,1719749434663,-554.61,0.00013986,3]
[330740097,1719749434674,-860.84,0.00013986,3]
[330740098,1719749434686,-1033.42,0.00013986,3]
[330740099,1719749434698,-500.0,0.00013986,3]
[330740100,1719749434711,-1411.49,0.00013986,3]
[330740101,1719749434723,-896.64,0.00013986,3]
[330740102,1719749434735,-500.0,0.00013987,3]
[330740103,1719749434747,-500.0,0.00013987,3]
[330740104,1719749434760,-403.92311243,0.00013987,3]
[330740105,1719749434773,-500.0,0.00013987,3]
[330740106,1719749434785,-500.0,0.00013987,3]
[330740107,1719749434798,-500.0,0.00013987,3]
[330740108,1719749434809,-500.0,0.00013987,3]
[330740109,1719749434823,-500.0,0.00013987,3]
[330740110,1719749434835,-500.0,0.00013987,3]
[330740111,1719749434848,-500.0,0.00013987,3]
[330740112,1719749434859,-500.0,0.00013987,3]
[330740113,1719749434871,-556.3509521,0.00013987,3]
[330740114,1719749434883,-500.0,0.00013987,3]
[330740115,1719749434896,-664.32,0.00013987,3]
[330740116,1719749434908,-500.0,0.00013987,3]
[330740117,1719749434920,-500.0,0.00013987,3]
[330740118,1719749434933,-500.0,0.00013987,3]
[330740119,1719749434945,-677.08,0.00013987,3]
[330740120,1719749434957,-500.0,0.00013987,3]
[330740121,1719749434969,-500.0,0.00013987,3]
[330740122,1719749434982,-500.0,0.00013987,3]
[330740123,1719749434994,-500.0,0.00013987,3]
[330740124,1719749435006,-752.49,0.00013987,3]
[330740125,1719749435017,-500.0,0.00013987,3]
[330740126,1719749435029,-500.0,0.00013987,3]
[330740127,1719749435040,-500.0,0.00013987,3]
[330740128,1719749435052,-494.00368411,0.00013987,3]
[330740129,1719749435064,-500.0,0.00013987,3]
[330740130,1719749435075,-500.0,0.00013987,3]
[330740131,1719749435087,-500.0,0.00013987,3]
[330740132,1719749435099,-500.0,0.00013987,3]
[330740133,1719749435111,-500.0,0.00013987,3]
[330740134,1719749435123,-500.0,0.00013987,3]
[330740135,1719749435136,-500.0,0.00013987,3]
[330740136,1719749435148,-575.32,0.00013987,3]
[330740137,1719749435160,-500.0,0.00013987,3]
[330740138,1719749435173,-231.50143518,0.00013987,3]
[330740139,1719749435185,-500.0,0.00013987,3]
[330740140,1719749435197,-500.0,0.00013987,3]
[330740141,1719749435210,-393.46718297,0.00013987,3]
[330740142,1719749435222,-500.0,0.00013987,3]
[330740143,1719749435233,-500.0,0.00013987,3]
[330740144,1719749435245,-659.45,0.00013987,3]
[330740145,1719749435256,-500.0,0.00013987,3]
[330740146,1719749435268,-588.26,0.00013987,3]
[330740147,1719749435280,-500.0,0.00013987,3]
[330740148,1719749435291,-500.0,0.00013987,3]
[330740149,1719749435303,-500.0,0.00013987,3]
[330740150,1719749435314,-500.0,0.00013987,3]
[330740151,1719749435326,-500.0,0.00013987,3]
[330740152,1719749435337,-500.0,0.00013987,3]
[330740153,1719749435348,-500.0,0.00013987,3]
[330740154,1719749435360,-500.0,0.00013987,3]
[330740155,1719749435372,-500.0,0.00013987,3]
[330740156,1719749435385,-500.0,0.00013987,3]
[330740157,1719749435398,-500.0,0.00013987,3]
[330740158,1719749435409,-500.0,0.00013987,3]
[330740159,1719749435422,-500.0,0.00013987,3]
[330740160,1719749435435,-500.0,0.00013987,3]
[330740161,1719749435447,-500.0,0.00013987,3]
[330740162,1719749435462,-500.0,0.00013987,3]
[330740163,1719749435475,-500.0,0.00013987,3]
[330740164,1719749435489,-500.0,0.00013987,3]
[330740165,1719749435503,-500.0,0.00013987,3]